No. of Trans,Dept Family,Entity Name,Cert Date,Supplier Name,Reference,Gross Amt,Group/Department,Type of Expenditure - Subjective Codes
1,DCMS,EH,22/02/2011,Treasure and Son,0020000636,"1,504.80",National Collections Group - Site Conservation Programme,OPERATIONAL COSTS - Works for Heritage Buildings
2,DCMS,EH,22/02/2011,Treasure and Son,0020000636,"37,876.71",National Collections Group - Site Conservation Programme,OPERATIONAL COSTS - Works for Heritage Buildings
3,DCMS,EH,22/02/2011,Anglian Water,0000799954,"26,495.29",National Collections Group - Historic Properties Department,RUNNING COSTS - Water
4,DCMS,EH,03/02/2011,Wessex Archaeology,0000796126,"39,950.00",Heritage Protection & Planning Group - Heritage Protection Department,ENABLING PROGRAMMES - Hist Environ Prog Projects Gra
5,DCMS,EH,02/02/2011,Skillington Workshop Ltd,0000798601,"25,370.93",National Collections Group - Site Conservation Programme,OPERATIONAL COSTS - Works for Heritage Buildings
6,DCMS,EH,09/02/2011,E Bowman and Sons Ltd,0000798785,"51,655.73",Heritage Protection & Planning Group - National Planning Department,OPERATIONAL COSTS - Works for Heritage Buildings
7,DCMS,EH,22/02/2011,E Bowman and Sons Ltd,0020000290,"26,888.58",National Collections Group - Property Investment Programme,NET WIP MOVEMENT - WIP Operational Building Works
8,DCMS,EH,07/02/2011,PAYE Stonework and Restoration Ltd,0000798758,"43,173.88",National Collections Group - Site Conservation Programme,OPERATIONAL COSTS - Works for Heritage Buildings
9,DCMS,EH,16/02/2011,Gillards Worldwide,0000799715,"31,424.05",National Collections Group - Retail Dept,OPERATIONAL COSTS - Storage & warehousing
10,DCMS,EH,02/02/2011,Historic Property Restoration Ltd,0000798772,170.75,National Collections Group - Property Maintenance Programme,OPERATIONAL COSTS - Leased Accomodation Maint
11,DCMS,EH,02/02/2011,Historic Property Restoration Ltd,0000798772,193.37,National Collections Group - Property Maintenance Programme,OPERATIONAL COSTS - Leased Accomodation Maint
12,DCMS,EH,02/02/2011,Historic Property Restoration Ltd,0000798772,247.86,National Collections Group - Property Maintenance Programme,OPERATIONAL COSTS - Responsive Repairs M & E
13,DCMS,EH,02/02/2011,Historic Property Restoration Ltd,0000798772,"6,598.03",National Collections Group - Property Maintenance Programme,OPERATIONAL COSTS - Responsive Repairs M & E
14,DCMS,EH,02/02/2011,Historic Property Restoration Ltd,0000798772,863.00,National Collections Group - Property Maintenance Programme,OPERATIONAL COSTS - Responsive Maint Building
15,DCMS,EH,02/02/2011,Historic Property Restoration Ltd,0000798772,"19,335.73",National Collections Group - Property Maintenance Programme,OPERATIONAL COSTS - Responsive Maint Building
16,DCMS,EH,02/02/2011,Historic Property Restoration Ltd,0000798774,"7,357.34",National Collections Group - Property Maintenance Programme,OPERATIONAL COSTS - Annual Cyclical Work M & E
17,DCMS,EH,02/02/2011,Historic Property Restoration Ltd,0000798774,"2,518.42",National Collections Group - Property Maintenance Programme,OPERATIONAL COSTS - Annual Cyclical Works-Building
18,DCMS,EH,02/02/2011,Historic Property Restoration Ltd,0000798774,"19,735.06",National Collections Group - Property Maintenance Programme,OPERATIONAL COSTS - Annual Cyclical Works-Building
19,DCMS,EH,02/02/2011,Historic Property Restoration Ltd,0000798774,312.59,National Collections Group - Property Maintenance Programme,OPERATIONAL COSTS - Annual Cyclical Work M & E
20,DCMS,EH,02/02/2011,Historic Property Restoration Ltd,0000798774,164.69,National Collections Group - Property Maintenance Programme,OPERATIONAL COSTS - Leased Accomodation Maint
21,DCMS,EH,22/02/2011,Electrotech BMS Ltd,0020000485,"25,666.74",National Collections Group - Conservation Dept,NET FIXED ASSET EXPENDITURE - Plant & Equipment > 10k
22,DCMS,EH,09/02/2011,Atos Origin IT Services UK Ltd,0000798898,"23,679.78",Resources Group - IMT Dept,RUNNING COSTS - ITFM
23,DCMS,EH,09/02/2011,Atos Origin IT Services UK Ltd,0000798898,"16,002.24",Resources Group - IMT Dept,RUNNING COSTS - ITFM
24,DCMS,EH,21/02/2011,Linford-Bridgeman Ltd,0020000285,"101,072.16",Heritage Protection & Planning Group - National Planning Department,OPERATIONAL COSTS - Works for Heritage Buildings
25,DCMS,EH,02/02/2011,BJ Unwin Forestry Consultancy,0000796131,293.75,National Collections Group - Property Maintenance Programme,OPERATIONAL COSTS - Annual Cyclical Work Grounds
26,DCMS,EH,02/02/2011,BJ Unwin Forestry Consultancy,0000796131,293.75,National Collections Group - Property Maintenance Programme,OPERATIONAL COSTS - Annual Cyclical Work Grounds
27,DCMS,EH,02/02/2011,BJ Unwin Forestry Consultancy,0000796131,293.75,National Collections Group - Property Maintenance Programme,OPERATIONAL COSTS - Annual Cyclical Work Grounds
28,DCMS,EH,02/02/2011,BJ Unwin Forestry Consultancy,0000796131,293.75,National Collections Group - Property Maintenance Programme,OPERATIONAL COSTS - Annual Cyclical Work Grounds
29,DCMS,EH,02/02/2011,BJ Unwin Forestry Consultancy,0000796131,293.75,National Collections Group - Property Maintenance Programme,OPERATIONAL COSTS - Annual Cyclical Work Grounds
30,DCMS,EH,02/02/2011,BJ Unwin Forestry Consultancy,0000796131,293.75,National Collections Group - Property Maintenance Programme,OPERATIONAL COSTS - Annual Cyclical Work Grounds
31,DCMS,EH,02/02/2011,BJ Unwin Forestry Consultancy,0000796131,293.75,National Collections Group - Property Maintenance Programme,OPERATIONAL COSTS - Annual Cyclical Work Grounds
32,DCMS,EH,02/02/2011,BJ Unwin Forestry Consultancy,0000796131,293.75,National Collections Group - Property Maintenance Programme,OPERATIONAL COSTS - Annual Cyclical Work Grounds
33,DCMS,EH,02/02/2011,BJ Unwin Forestry Consultancy,0000796131,293.75,National Collections Group - Property Maintenance Programme,OPERATIONAL COSTS - Annual Cyclical Work Grounds
34,DCMS,EH,02/02/2011,BJ Unwin Forestry Consultancy,0000796131,293.75,National Collections Group - Property Maintenance Programme,OPERATIONAL COSTS - Annual Cyclical Work Grounds
35,DCMS,EH,02/02/2011,BJ Unwin Forestry Consultancy,0000796131,293.75,National Collections Group - Property Maintenance Programme,OPERATIONAL COSTS - Annual Cyclical Work Grounds
36,DCMS,EH,02/02/2011,BJ Unwin Forestry Consultancy,0000796131,293.75,National Collections Group - Property Maintenance Programme,OPERATIONAL COSTS - Annual Cyclical Work Grounds
37,DCMS,EH,02/02/2011,BJ Unwin Forestry Consultancy,0000796131,323.13,National Collections Group - Property Maintenance Programme,OPERATIONAL COSTS - Annual Cyclical Work Grounds
38,DCMS,EH,02/02/2011,BJ Unwin Forestry Consultancy,0000796131,323.13,National Collections Group - Property Maintenance Programme,OPERATIONAL COSTS - Annual Cyclical Work Grounds
39,DCMS,EH,02/02/2011,BJ Unwin Forestry Consultancy,0000796131,323.13,National Collections Group - Property Maintenance Programme,OPERATIONAL COSTS - Annual Cyclical Work Grounds
40,DCMS,EH,02/02/2011,BJ Unwin Forestry Consultancy,0000796131,323.13,National Collections Group - Property Maintenance Programme,OPERATIONAL COSTS - Annual Cyclical Work Grounds
41,DCMS,EH,02/02/2011,BJ Unwin Forestry Consultancy,0000796131,470.00,National Collections Group - Property Maintenance Programme,OPERATIONAL COSTS - Annual Cyclical Work Grounds
42,DCMS,EH,02/02/2011,BJ Unwin Forestry Consultancy,0000796131,470.00,National Collections Group - Property Maintenance Programme,OPERATIONAL COSTS - Annual Cyclical Work Grounds
43,DCMS,EH,02/02/2011,BJ Unwin Forestry Consultancy,0000796131,470.00,National Collections Group - Property Maintenance Programme,OPERATIONAL COSTS - Annual Cyclical Work Grounds
44,DCMS,EH,02/02/2011,BJ Unwin Forestry Consultancy,0000796131,470.00,National Collections Group - Property Maintenance Programme,OPERATIONAL COSTS - Annual Cyclical Work Grounds
45,DCMS,EH,02/02/2011,BJ Unwin Forestry Consultancy,0000796131,470.00,National Collections Group - Property Maintenance Programme,OPERATIONAL COSTS - Annual Cyclical Work Grounds
46,DCMS,EH,02/02/2011,BJ Unwin Forestry Consultancy,0000796131,470.00,National Collections Group - Property Maintenance Programme,OPERATIONAL COSTS - Annual Cyclical Work Grounds
47,DCMS,EH,02/02/2011,BJ Unwin Forestry Consultancy,0000796131,470.00,National Collections Group - Property Maintenance Programme,OPERATIONAL COSTS - Annual Cyclical Work Grounds
48,DCMS,EH,02/02/2011,BJ Unwin Forestry Consultancy,0000796131,"2,673.13",National Collections Group - Property Maintenance Programme,OPERATIONAL COSTS - Annual Cyclical Work Grounds
49,DCMS,EH,02/02/2011,BJ Unwin Forestry Consultancy,0000796131,"4,817.50",National Collections Group - Property Maintenance Programme,OPERATIONAL COSTS - Annual Cyclical Work Grounds
50,DCMS,EH,02/02/2011,BJ Unwin Forestry Consultancy,0000796131,-537.59,National Collections Group - Property Maintenance Programme,OPERATIONAL COSTS - Annual Cyclical Work Grounds
51,DCMS,EH,02/02/2011,BJ Unwin Forestry Consultancy,0000796131,470.00,National Collections Group - Property Maintenance Programme,OPERATIONAL COSTS - Annual Cyclical Work Grounds
52,DCMS,EH,02/02/2011,BJ Unwin Forestry Consultancy,0000796131,470.00,National Collections Group - Property Maintenance Programme,OPERATIONAL COSTS - Annual Cyclical Work Grounds
53,DCMS,EH,02/02/2011,BJ Unwin Forestry Consultancy,0000796131,470.00,National Collections Group - Property Maintenance Programme,OPERATIONAL COSTS - Annual Cyclical Work Grounds
54,DCMS,EH,02/02/2011,BJ Unwin Forestry Consultancy,0000796131,470.00,National Collections Group - Property Maintenance Programme,OPERATIONAL COSTS - Annual Cyclical Work Grounds
55,DCMS,EH,02/02/2011,BJ Unwin Forestry Consultancy,0000796131,528.75,National Collections Group - Property Maintenance Programme,OPERATIONAL COSTS - Annual Cyclical Work Grounds
56,DCMS,EH,02/02/2011,BJ Unwin Forestry Consultancy,0000796131,528.75,National Collections Group - Property Maintenance Programme,OPERATIONAL COSTS - Annual Cyclical Work Grounds
57,DCMS,EH,02/02/2011,BJ Unwin Forestry Consultancy,0000796131,528.75,National Collections Group - Property Maintenance Programme,OPERATIONAL COSTS - Annual Cyclical Work Grounds
58,DCMS,EH,02/02/2011,BJ Unwin Forestry Consultancy,0000796131,528.75,National Collections Group - Property Maintenance Programme,OPERATIONAL COSTS - Annual Cyclical Work Grounds
59,DCMS,EH,02/02/2011,BJ Unwin Forestry Consultancy,0000796131,528.75,National Collections Group - Property Maintenance Programme,OPERATIONAL COSTS - Annual Cyclical Work Grounds
60,DCMS,EH,02/02/2011,BJ Unwin Forestry Consultancy,0000796131,705.00,National Collections Group - Property Maintenance Programme,OPERATIONAL COSTS - Annual Cyclical Work Grounds
61,DCMS,EH,02/02/2011,BJ Unwin Forestry Consultancy,0000796131,705.00,National Collections Group - Property Maintenance Programme,OPERATIONAL COSTS - Annual Cyclical Work Grounds
62,DCMS,EH,02/02/2011,BJ Unwin Forestry Consultancy,0000796131,705.00,National Collections Group - Property Maintenance Programme,OPERATIONAL COSTS - Annual Cyclical Work Grounds
63,DCMS,EH,02/02/2011,BJ Unwin Forestry Consultancy,0000796131,705.00,National Collections Group - Property Maintenance Programme,OPERATIONAL COSTS - Annual Cyclical Work Grounds
64,DCMS,EH,02/02/2011,BJ Unwin Forestry Consultancy,0000796131,705.00,National Collections Group - Property Maintenance Programme,OPERATIONAL COSTS - Annual Cyclical Work Grounds
65,DCMS,EH,02/02/2011,BJ Unwin Forestry Consultancy,0000796131,"1,175.00",National Collections Group - Property Maintenance Programme,OPERATIONAL COSTS - Annual Cyclical Work Grounds
66,DCMS,EH,02/02/2011,BJ Unwin Forestry Consultancy,0000796131,"2,056.25",National Collections Group - Property Maintenance Programme,OPERATIONAL COSTS - Annual Cyclical Work Grounds
67,DCMS,EH,09/02/2011,Coulson Group Ltd,0000799254,"28,241.45",National Collections Group - Property Investment Programme,NET WIP MOVEMENT - WIP Operational Building Works
68,DCMS,EH,07/02/2011,Edge Testing Solutions Ltd,0000796642,"7,196.88",Resources Group - IMT Dept,OTHER EXPENDITURE - System developments <50k
69,DCMS,EH,07/02/2011,Edge Testing Solutions Ltd,0000796642,"10,281.25",Resources Group - IMT Dept,OTHER EXPENDITURE - System developments <50k
70,DCMS,EH,07/02/2011,Edge Testing Solutions Ltd,0000796642,646.24,Resources Group - IMT Dept,OTHER EXPENDITURE - System developments <50k
71,DCMS,EH,07/02/2011,Edge Testing Solutions Ltd,0000796642,"12,601.88",Resources Group - IMT Dept,OTHER EXPENDITURE - System developments <50k
72,DCMS,EH,14/02/2011,Kier Southern,0000799819,"51,186.00",National Collections Group - Property Investment Programme,NET WIP MOVEMENT - WIP Refurb & Fitting Out
73,DCMS,EH,16/02/2011,South Derbyshire D C,0090510809,"48,634.00",Heritage Protection & Planning Group - National Planning Department,GRANTS PAYABLE - AREA
74,DCMS,EH,07/02/2011,South Holland District Council,0090510740,"35,385.64",Heritage Protection & Planning Group - National Planning Department,GRANTS PAYABLE - AREA
75,DCMS,EH,21/02/2011,London Borough Of Tower Hamlets,0090510816,"76,450.00",Heritage Protection & Planning Group - National Planning Department,GRANTS PAYABLE - AREA
76,DCMS,EH,22/02/2011,Yorkshire Henges,0081001352,"31,000.00",Heritage Protection & Planning Group - Heritage Protection Department,ENABLING PROGRAMMES - Historic Environ Prog Grants
77,DCMS,EH,15/02/2011,Cheshire West and Chester Council,0081001348,"35,000.00",Heritage Protection & Planning Group - Heritage Protection Department,ENABLING PROGRAMMES - Historic Environ Prog Grants
78,DCMS,EH,02/02/2011,Historic Environment Service,0081001322,"36,899.00",Heritage Protection & Planning Group - Heritage Protection Department,ENABLING PROGRAMMES - Historic Environ Prog Grants
79,DCMS,EH,22/02/2011,Historic Environment Service,0081001356,"52,228.33",Heritage Protection & Planning Group - Heritage Protection Department,ENABLING PROGRAMMES - Historic Environ Prog Grants
80,DCMS,EH,02/02/2011,Gloucestershire County Council,0081001323,"27,151.00",Heritage Protection & Planning Group - Heritage Protection Department,ENABLING PROGRAMMES - Historic Environ Prog Grants
81,DCMS,EH,23/02/2011,The Norfolk Archaeological Trust,0090510848,"40,000.00",Heritage Protection & Planning Group - National Planning Department,GRANTS PAYABLE - HISTORIC BUILDINGS
82,DCMS,EH,07/02/2011,The National Trust Worksop,0090510764,"300,000.00",Heritage Protection & Planning Group - National Planning Department,GRANTS PAYABLE - HISTORIC BUILDINGS
83,DCMS,EH,07/02/2011,Monastic Grange at Priory Farm,0090510755,"25,260.00",Heritage Protection & Planning Group - National Planning Department,GRANTS PAYABLE - HISTORIC BUILDINGS
84,DCMS,EH,28/02/2011,Norden St Pauls PCC,0090510917,"10,250.00",Heritage Protection & Planning Group - National Planning Department,GRANTS PAYABLE - PLACES OF WORSHIP
85,DCMS,EH,28/02/2011,Norden St Pauls PCC,0090510917,"77,500.00",Heritage Protection & Planning Group - National Planning Department,GRANTS PAYABLE - PLACES OF WORSHIP
86,DCMS,EH,07/02/2011,Shildon Engine House,0090510754,"26,348.00",Heritage Protection & Planning Group - National Planning Department,GRANTS PAYABLE - HISTORIC BUILDINGS
87,DCMS,EH,02/02/2011,LB of Islington,0090510712,"58,861.00",Heritage Protection & Planning Group - National Planning Department,GRANTS PAYABLE - AREA
88,DCMS,EH,23/02/2011,LB of Islington,0090510861,"27,967.00",Heritage Protection & Planning Group - National Planning Department,GRANTS PAYABLE - AREA
89,DCMS,EH,23/02/2011,LB of Islington,0090510864,"33,730.00",Heritage Protection & Planning Group - National Planning Department,GRANTS PAYABLE - AREA
90,DCMS,EH,23/02/2011,LB of Islington,0090510865,"59,673.00",Heritage Protection & Planning Group - National Planning Department,GRANTS PAYABLE - AREA
91,DCMS,EH,21/02/2011,Wiggenhall St Germans PCC,0090510828,"25,063.00",Heritage Protection & Planning Group - National Planning Department,GRANTS PAYABLE - HISTORIC BUILDINGS
92,DCMS,EH,21/02/2011,Wiggenhall St Germans PCC,0090510828,187.00,Heritage Protection & Planning Group - National Planning Department,GRANTS PAYABLE - HISTORIC BUILDINGS
93,DCMS,EH,21/02/2011,Sheffield City Council,0090510823,"200,000.00",Heritage Protection & Planning Group - National Planning Department,GRANTS PAYABLE - HISTORIC BUILDINGS
94,DCMS,EH,02/02/2011,Fezan Ltd,0090510707,"27,500.00",Heritage Protection & Planning Group - National Planning Department,GRANTS PAYABLE - HISTORIC BUILDINGS
95,DCMS,EH,07/02/2011,Royston St John The Baptist PCC,0090510762,"27,000.00",Heritage Protection & Planning Group - National Planning Department,GRANTS PAYABLE - PLACES OF WORSHIP
96,DCMS,EH,28/02/2011,The Historic Chapels Trust,0090510887,"50,537.00",Heritage Protection & Planning Group - National Planning Department,GRANTS PAYABLE - HISTORIC BUILDINGS
97,DCMS,EH,21/02/2011,Heritage Trust of Lincolnshire,0090510821,"25,410.00",Heritage Protection & Planning Group - National Planning Department,GRANTS PAYABLE - HISTORIC BUILDINGS
98,DCMS,EH,23/02/2011,Necton PCC,0090510866,"48,600.00",Heritage Protection & Planning Group - National Planning Department,GRANTS PAYABLE - PLACES OF WORSHIP
99,DCMS,EH,28/02/2011,St Marys Acle with Fishley PCC,0090510906,"14,500.00",Heritage Protection & Planning Group - National Planning Department,GRANTS PAYABLE - PLACES OF WORSHIP
100,DCMS,EH,28/02/2011,St Marys Acle with Fishley PCC,0090510906,"17,450.00",Heritage Protection & Planning Group - National Planning Department,GRANTS PAYABLE - PLACES OF WORSHIP
101,DCMS,EH,28/02/2011,St Marks Church Dalston,0090510899,"27,000.00",Heritage Protection & Planning Group - National Planning Department,GRANTS PAYABLE - PLACES OF WORSHIP
102,DCMS,EH,28/02/2011,St Marks Church Dalston,0090510899,"5,400.00",Heritage Protection & Planning Group - National Planning Department,GRANTS PAYABLE - PLACES OF WORSHIP
103,DCMS,EH,23/02/2011,St Kenelms PCC,0090510846,"36,500.00",Heritage Protection & Planning Group - National Planning Department,GRANTS PAYABLE - PLACES OF WORSHIP
104,DCMS,EH,23/02/2011,Chelmorton with Flagg PCC,0090510831,"35,550.00",Heritage Protection & Planning Group - National Planning Department,GRANTS PAYABLE - PLACES OF WORSHIP
105,DCMS,EH,28/02/2011,St Marys the Virgin Baldock PCC,0090510907,"36,500.00",Heritage Protection & Planning Group - National Planning Department,GRANTS PAYABLE - PLACES OF WORSHIP
106,DCMS,EH,07/02/2011,"St Johns Parish Church, Silverdale",0090510752,"22,000.00",Heritage Protection & Planning Group - National Planning Department,GRANTS PAYABLE - PLACES OF WORSHIP
107,DCMS,EH,07/02/2011,"St Johns Parish Church, Silverdale",0090510752,"3,593.00",Heritage Protection & Planning Group - National Planning Department,GRANTS PAYABLE - PLACES OF WORSHIP
108,DCMS,EH,23/02/2011,Longholme Methodist Church,0090510839,"67,000.00",Heritage Protection & Planning Group - National Planning Department,GRANTS PAYABLE - PLACES OF WORSHIP
109,DCMS,EH,23/02/2011,Longholme Methodist Church,0090510839,"17,600.00",Heritage Protection & Planning Group - National Planning Department,GRANTS PAYABLE - PLACES OF WORSHIP
110,DCMS,EH,28/02/2011,St Barnabas PCC,0090510901,"38,000.00",Heritage Protection & Planning Group - National Planning Department,GRANTS PAYABLE - PLACES OF WORSHIP
111,DCMS,EH,28/02/2011,The Ellenroad Trust Ltd,0090510878,"37,967.00",Heritage Protection & Planning Group - National Planning Department,GRANTS PAYABLE - HISTORIC BUILDINGS
112,DCMS,EH,16/02/2011,Thornhill PCC,0090510814,"79,500.00",Heritage Protection & Planning Group - National Planning Department,GRANTS PAYABLE - PLACES OF WORSHIP
113,DCMS,EH,23/02/2011,Easton-in-Gordano PCC St Georges,0090510830,"37,500.00",Heritage Protection & Planning Group - National Planning Department,GRANTS PAYABLE - PLACES OF WORSHIP
114,DCMS,EH,09/02/2011,PCC of St John of Jerusalem,0090510765,"56,000.00",Heritage Protection & Planning Group - National Planning Department,GRANTS PAYABLE - PLACES OF WORSHIP
115,DCMS,EH,28/02/2011,Cheshire West & Chester Council,0090510881,"90,012.00",Heritage Protection & Planning Group - National Planning Department,GRANTS PAYABLE - HISTORIC BUILDINGS
116,DCMS,EH,23/02/2011,PCC of St James in the City,0090510842,"33,336.00",Heritage Protection & Planning Group - National Planning Department,GRANTS PAYABLE - HISTORIC BUILDINGS
117,DCMS,EH,21/02/2011,Canby Ltd,0001072147,"26,640.00",National Collections Group - Retail Dept,TOTAL STOCK - Retail Goods & Souvenirs Purch
118,DCMS,EH,28/02/2011,Kit Heath Silver,0001072205,"56,293.28",National Collections Group - Retail Dept,TOTAL STOCK - Retail Goods & Souvenirs Purch
